bitfinex-derivatives/quotes_SOLF0:USTF0_20250624
["timestamp","ask_amount","ask_price","bid_price","bid_amount"]
[1750805053856,5.00847445,144.78,144.75,2.20273954]
[1750805054155,6.9037,144.79,144.76,6.9045]
[1750805054361,9.58724475,144.78,144.76,6.9045]
[1750805054561,6.9037,144.79,144.76,6.9045]
[1750805054746,5.00502229,144.78,144.75,2.20273954]
[1750805054952,9.10643954,144.79,144.75,2.20273954]
[1750805055146,5.00293388,144.78,144.75,2.20273954]
[1750805055350,9.10643954,144.79,144.75,2.20273954]
[1750805055558,5.00297461,144.78,144.75,2.20273954]
[1750805055859,9.10643954,144.79,144.75,2.20273954]
[1750805056063,5.00238645,144.78,144.75,2.20273954]
[1750805056254,9.10643954,144.79,144.75,2.20273954]
[1750805056556,5.002344,144.78,144.77,6.9044]
[1750805057759,9.10643954,144.79,144.77,6.9044]
[1750805058960,6.9037,144.79,144.77,6.9044]
[1750805060256,43.42593954,144.8,144.77,6.9041]
[1750805060453,5.00495829,144.79,144.78,2.20273954]
[1750805060761,596.64,144.84,144.78,2.20273954]
[1750805060762,10.09112217,144.83,144.78,2.20273954]
[1750805060963,4.57782376,144.82,144.8,9.10543954]
[1750805061162,4.57782376,144.81,144.8,9.10543954]
[1750805061356,6.9018,144.83,144.8,9.10543954]
[1750805061660,4.57827699,144.82,144.81,6.9025]
[1750805062254,9.10393954,144.84,144.82,6.902]
[1750805062564,4.57889498,144.83,144.82,6.902]
[1750805063668,4.57889498,144.83,144.81,6.9022]
[1750805063854,9.10393954,144.84,144.81,6.9022]
[1750805065662,4.57356147,144.83,144.82,6.9019]
[1750805065865,43.42353954,144.85,144.82,2.20273954]
[1750805065866,34.32,144.85,144.82,2.20273954]
[1750805066061,38.89491007,144.85,144.84,6.9011]
[1750805066258,34.32,144.85,144.84,6.9011]
[1750805066566,4.57580405,144.87,144.83,2.20273954]
[1750805066768,43.38213954,144.88,144.85,6.9005]
[1750805067264,6.8997,144.87,144.85,6.9005]
[1750805067451,6.8997,144.87,144.83,2.20273954]
[1750805067655,2.20273954,144.87,144.84,6.9008]
[1750805067851,9.10263954,144.87,144.82,2.20273954]
[1750805068466,43.38213954,144.88,144.83,2.20273954]
[1750805068662,43.38213954,144.88,144.85,6.9002]
[1750805068861,47.94984189,144.88,144.85,6.9002]
[1750805069066,43.38213954,144.88,144.85,6.9002]
[1750805069568,47.94984189,144.88,144.86,6.9001]
[1750805069764,43.38213954,144.88,144.86,6.9001]
[1750805069963,41.1794,144.88,144.86,6.9001]
[1750805070161,34.28,144.88,144.86,6.9001]
[1750805070965,9.10173954,144.89,144.86,6.9001]
[1750805071166,43.36173954,144.89,144.86,6.9001]
[1750805072067,2.20273954,144.88,144.85,6.9003]
[1750805072460,9.10213954,144.88,144.85,6.9003]
[1750805072661,6.8994,144.88,144.85,6.9003]
[1750805072860,9.10213954,144.88,144.85,6.9003]
[1750805073063,2.20273954,144.88,144.84,9.10353954]
[1750805073363,2.20273954,144.86,144.82,2.20273954]
[1750805073868,2.20273954,144.86,144.84,6.9008]
[1750805074566,9.10283954,144.86,144.84,6.9008]
[1750805074768,2.20273954,144.85,144.81,36.48273954]
[1750805074958,2.20273954,144.85,144.81,2.20273954]
[1750805075159,9.10303954,144.86,144.82,2.20273954]
[1750805075461,2.20273954,144.86,144.82,2.20273954]
[1750805075663,6.9009,144.85,144.82,6.9018]
[1750805076759,9.10363954,144.85,144.82,6.9018]
[1750805079171,9.10363954,144.85,144.81,2.20273954]
[1750805079574,9.10363954,144.85,144.82,6.9018]
[1750805079775,6.9011,144.84,144.82,6.9018]
[1750805081272,2.20273954,144.84,144.81,6.9023]
[1750805081483,2.20273954,144.83,144.81,6.9023]
[1750805082275,9.10453954,144.83,144.81,6.9023]
[1750805082568,2.20273954,144.83,144.81,6.9023]
[1750805082769,9.10403954,144.84,144.81,6.9023]
[1750805087577,6.9016,144.83,144.81,6.9023]
[1750805087780,2.20273954,144.82,144.77,2.20273954]
[1750805088075,737.74957821,144.91,144.75,6.83563954]
[1750805088076,2.20273954,144.8,144.75,6.83563954]
[1750805088280,2.20273954,144.79,144.77,6.9041]
[1750805089771,9.10613954,144.8,144.77,6.9041]
[1750805090974,2.20273954,144.8,144.77,6.9041]
[1750805091174,2.20273954,144.8,144.78,6.9038]
[1750805092271,9.10603954,144.8,144.78,6.9038]
[1750805097884,9.10603954,144.8,144.77,6.9041]
[1750805100081,6.9035,144.79,144.77,6.9041]
[1750805100282,2.20273954,144.78,144.73,2.3875]
[1750805100484,2.20273954,144.77,144.73,4.59023954]
[1750805100879,9.10723954,144.77,144.74,6.9057]
[1750805101175,9.10723954,144.77,144.73,4.59023954]
[1750805101986,6.9051,144.76,144.73,2.3875]
[1750805102177,6.9051,144.76,144.72,2.20273954]
[1750805102178,9.10783954,144.76,144.72,2.20273954]
[1750805103384,6.9051,144.76,144.72,2.20273954]
[1750805103986,6.9051,144.76,144.73,6.9059]
[1750805104181,6.9054,144.75,144.73,6.9059]
[1750805104688,6.9054,144.75,144.72,9.10913954]
[1750805104886,6.9054,144.75,144.71,2.20273954]
[1750805105283,9.10803954,144.76,144.73,6.906]
[1750805105891,9.10803954,144.76,144.74,6.9057]
[1750805108090,9.10803954,144.76,144.73,6.9061]
[1750805108292,2.20273954,144.75,144.73,6.9061]
[1750805108993,9.10813954,144.75,144.73,6.9061]
[1750805109893,2.20273954,144.74,144.72,6.9065]
[1750805110095,2.20273954,144.73,144.7,2.2651]
[1750805110792,2.20273954,144.73,144.71,6.907]
[1750805110989,2.20273954,144.73,144.68,4.39843954]
[1750805111389,9.10933954,144.73,144.7,6.9075]
[1750805111595,2.20273954,144.72,144.7,6.9075]
[1750805112094,2.20273954,144.71,144.66,38.8582]
[1750805112392,2.20273954,144.7,144.66,41.06093954]
[1750805112589,2.20273954,144.7,144.66,6.82093954]
[1750805113093,2.20273954,144.7,144.68,6.9084]
[1750805113297,6.9073,144.71,144.68,6.9084]
[1750805113298,9.11003954,144.71,144.68,6.9084]
[1750805114995,2.20273954,144.7,144.68,6.9084]
[1750805117704,9.11053954,144.7,144.67,6.9089]
[1750805117997,9.11053954,144.7,144.66,6.82093954]
[1750805118398,9.11053954,144.7,144.67,6.9087]
[1750805118601,2.20273954,144.7,144.66,6.82093954]
[1750805119194,2.20273954,144.7,144.68,6.9085]
[1750805119702,9.11053954,144.7,144.68,6.9085]
[1750805121495,2.20273954,144.7,144.66,4.6182]
[1750805121699,34.24,144.73,144.64,2.2335]
[1750805121700,2.20273954,144.67,144.64,2.2335]
[1750805122193,9.11213954,144.67,144.64,9.1439]
[1750805123092,9.11243954,144.66,144.64,9.1439]
[1750805123293,2.20273954,144.65,144.63,6.9109]
[1750805124603,2.20273954,144.64,144.6,36.5521]
[1750805124801,2.20273954,144.63,144.6,2.2921]
[1750805125298,2.20273954,144.64,144.62,6.9116]
[1750805126402,41.1704,144.65,144.62,6.9116]
[1750805126904,6.9108,144.64,144.61,6.9119]
[1750805130606,34.22,144.68,144.62,3.44052303]
[1750805130899,6.9094,144.67,144.64,6.9106]
[1750805131205,6.9094,144.67,144.61,34.22]
[1750805132305,6.9094,144.67,144.64,6.9103]
[1750805133206,41.129,144.68,144.62,3.44052303]
[1750805133602,41.129,144.68,144.63,2.3443]
[1750805133804,41.129,144.68,144.63,4.7025]
[1750805134310,41.129,144.68,144.66,6.9096]
[1750805137013,34.22,144.68,144.66,6.9096]
[1750805137705,34.22,144.68,144.67,6.9092]
[1750805139502,34.22,144.71,144.64,3.44052303]
[1750805139700,34.22,144.71,144.66,3.44052303]
[1750805140601,34.22,144.71,144.66,5.79692303]
[1750805140801,34.22,144.71,144.7,6.9077]
[1750805147604,34.22,144.74,144.7,6.9077]
[1750805147809,3.44052303,144.73,144.66,5.79692303]
[1750805148017,10.34712303,144.73,144.66,5.79692303]
[1750805148217,10.34712303,144.73,144.7,6.9076]
[1750805151307,6.9068,144.72,144.7,6.9076]
[1750805155915,10.34712303,144.73,144.7,6.9076]
[1750805156823,6.9068,144.72,144.7,6.9076]
[1750805160227,9.10640038,144.72,144.7,6.9076]
[1750805165021,2.19960038,144.72,144.7,6.9076]
[1750805165224,36.41960038,144.74,144.7,2.19960038]
[1750805165427,36.41960038,144.74,144.66,15.28663283]
[1750805165428,34.22,144.74,144.71,2.19960038]
[1750805165927,34.22,144.74,144.72,6.9068]
[1750805166726,6.9056,144.75,144.72,6.9068]
[1750805168320,6.9056,144.75,144.73,6.9062]
[1750805168522,41.0851,144.76,144.73,6.9062]
[1750805170226,6.9055,144.75,144.73,6.9062]
[1750805170615,34.18,144.76,144.73,6.9062]
[1750805171321,41.0851,144.76,144.74,6.9058]
[1750805173632,41.0851,144.76,144.73,6.9061]
[1750805174827,12.92675252,144.75,144.68,4.5892]
[1750805175026,3.43549522,144.73,144.68,4.5892]
[1750805175333,10.34219522,144.73,144.7,6.9075]
[1750805176632,6.9068,144.72,144.7,6.9075]
[1750805177829,10.34209522,144.73,144.7,6.9075]
[1750805178734,6.9069,144.72,144.69,6.9079]
[1750805181531,6.9069,144.72,144.68,4.5892]
[1750805181936,6.9069,144.72,144.69,6.9078]
[1750805183636,3.43549522,144.73,144.68,6.9085]
[1750805184132,6.9076,144.71,144.68,6.9085]
[1750805184935,6.9076,144.71,144.66,37.61549522]
[1750805184936,6.9077,144.7,144.67,6.9089]
[1750805185126,6.9077,144.7,144.65,12.93023283]
[1750805185537,6.9077,144.7,144.68,6.9085]
[1750805186035,6.9077,144.7,144.67,6.909]
[1750805186240,2.20032024,144.69,144.67,6.909]
[1750805187032,2.20032024,144.69,144.68,6.9087]
[1750805187236,9.10802024,144.7,144.68,6.9087]
[1750805189239,2.20032024,144.7,144.68,6.9087]
[1750805189937,9.10802024,144.7,144.68,6.9087]
[1750805190632,2.20032024,144.74,144.69,2.20032024]
[1750805190830,2.20032024,144.74,144.7,2.20032024]
[1750805191030,9.10642024,144.74,144.72,6.9067]
[1750805192236,2.20032024,144.74,144.72,6.9067]
[1750805192543,36.36032024,144.75,144.72,6.9067]
[1750805193040,6.9058,144.74,144.72,6.9067]
[1750805193839,34.16,144.75,144.72,2.20032024]
[1750805194336,34.16,144.75,144.7,3.43520835]
[1750805195040,41.0654,144.75,144.73,6.9061]
[1750805195239,34.16,144.75,144.73,6.9061]
[1750805195642,41.0654,144.75,144.73,6.9061]
[1750805199233,34.16,144.75,144.74,6.9058]
[1750805200837,34.16,144.78,144.72,3.43520835]
[1750805201847,41.0642,144.78,144.76,6.9046]
[1750805204442,34.16,144.78,144.76,6.9046]
[1750805205035,41.0642,144.78,144.76,6.9046]
[1750805205946,41.0642,144.78,144.75,6.9051]
[1750805206744,41.0642,144.78,144.76,6.9049]
[1750805206944,41.0642,144.78,144.73,4.6328]
[1750805207339,41.0642,144.78,144.75,6.9051]
[1750805209845,6.9045,144.77,144.75,6.9051]
[1750805213041,6.9041,144.78,144.73,4.6328]
[1750805213241,634.43520835,144.8,144.73,4.6328]
[1750805213443,9.54122553,144.79,144.73,4.6328]
[1750805213642,6.904,144.78,144.75,6.9051]
[1750805214150,6.9045,144.77,144.75,6.9051]
[1750805214845,6.9049,144.76,144.74,6.9056]
[1750805215037,6.9049,144.76,144.72,2.19775519]
[1750805215038,2.19775519,144.76,144.72,2.19775519]
[1750805216142,9.10295519,144.76,144.73,6.9061]
[1750805216447,6.9052,144.76,144.73,6.9061]
[1750805216643,6.9052,144.76,144.73,9.10385519]
[1750805217838,6.9052,144.76,144.74,6.9058]
[1750805219250,9.10245519,144.77,144.74,6.9058]
[1750805221048,9.10245519,144.77,144.75,6.9053]
[1750805222550,2.19775519,144.77,144.75,6.9053]
[1750805222750,2.19775519,144.77,144.76,6.9049]
[1750805222949,2.19775519,144.78,144.74,2.19775519]
[1750805223147,2.19775519,144.79,144.77,6.9044]
[1750805223856,9.10125519,144.79,144.77,6.9044]
[1750805229162,6.9035,144.79,144.77,6.9044]
[1750805229362,9.10125519,144.79,144.77,6.9044]
[1750805229669,2.19775519,144.78,144.76,6.9046]
[1750805232662,2.19775519,144.79,144.77,6.9044]
[1750805233868,34.16,144.8,144.78,2.19775519]
[1750805234268,34.16,144.8,144.77,2.19775519]
[1750805234763,36.35775519,144.8,144.76,2.19775519]
[1750805235068,43.26095519,144.8,144.78,6.9037]
[1750805235364,34.16,144.8,144.79,6.9034]
[1750805235571,11.76914242,144.82,144.75,47.05023283]
[1750805235774,34.12,144.83,144.76,2.19775519]
[1750805235775,2.19775519,144.8,144.76,2.19775519]
[1750805236268,2.19775519,144.8,144.78,6.9035]
[1750805236771,9.10055519,144.81,144.78,6.9035]
[1750805236970,2.19775519,144.81,144.79,6.9033]
[1750805237165,2.19775519,144.82,144.77,2.19775519]
[1750805237366,9.57338457,144.81,144.77,2.19775519]
[1750805237567,2.19775519,144.82,144.77,2.19775519]
[1750805237767,16.47930301,144.81,144.77,2.19775519]
[1750805237967,6.9026,144.81,144.77,2.19775519]
[1750805238371,6.9026,144.81,144.79,6.9032]
[1750805238674,9.09995519,144.82,144.79,6.9032]
[1750805239875,6.9025,144.81,144.79,6.9032]
[1750805241075,9.10025519,144.81,144.79,6.9032]
[1750805243080,2.19775519,144.81,144.79,6.9032]
[1750805244178,9.10035519,144.81,144.79,6.9032]
[1750805251685,2.19775519,144.81,144.79,6.9032]
[1750805253285,9.10025519,144.81,144.79,6.9032]
[1750805259086,2.19727342,144.8,144.74,4.5813]
[1750805259277,2.19727342,144.77,144.74,4.5813]
[1750805259483,2.19810148,144.77,144.74,4.5813]
[1750805259683,2.19810148,144.76,144.73,2.3109]
[1750805259885,2.19810148,144.75,144.71,34.12]
[1750805260085,2.19810148,144.73,144.7,4.5859]
[1750805260294,2.19810148,144.73,144.72,6.9068]
[1750805260888,2.19810148,144.73,144.71,6.907]
[1750805263492,2.19810148,144.74,144.72,6.9068]
[1750805266200,9.10400148,144.74,144.72,6.9068]
[1750805266792,43.22370148,144.75,144.72,6.9068]
[1750805271301,6.9059,144.74,144.72,6.9068]
[1750805271704,9.10400148,144.74,144.72,6.9068]
[1750805272405,9.10400148,144.74,144.71,6.907]
[1750805282210,2.19810148,144.74,144.7,6.78400148]
[1750805282410,34.12,144.75,144.72,2.19810148]
[1750805282912,2.19810148,144.76,144.72,2.19810148]
[1750805283112,6.9051,144.76,144.73,6.9059]
[1750805283319,6.9051,144.76,144.72,2.19810148]
[1750805283517,6.9051,144.76,144.73,6.9062]
[1750805284611,6.9054,144.75,144.73,6.9062]
[1750805285021,2.19810148,144.76,144.73,6.9062]
[1750805285319,9.10320148,144.76,144.74,6.9058]
[1750805286523,2.19810148,144.76,144.74,6.9058]
[1750805288714,9.10300148,144.76,144.74,6.9058]
[1750805288921,9.10300148,144.76,144.73,6.9061]
[1750805290023,6.9054,144.75,144.73,6.9061]
[1750805290416,2.19810148,144.74,144.7,6.78400148]
[1750805290623,6.9066,144.73,144.7,6.78400148]
[1750805290820,6.9066,144.73,144.7,13.69150148]
[1750805291020,6.9066,144.73,144.7,11.32800148]
[1750805291324,2.19810148,144.72,144.7,6.9075]
[1750805291719,9.10560148,144.71,144.67,34.12]
[1750805292027,2.19810148,144.7,144.68,6.9084]
[1750805292229,9.10590148,144.7,144.68,6.9084]
[1750805293427,2.19810148,144.72,144.68,2.19810148]
[1750805293731,2.19810148,144.73,144.69,2.19810148]
[1750805294025,9.10470148,144.73,144.7,6.9075]
[1750805294820,43.22400148,144.74,144.69,2.19810148]
[1750805295417,43.22400148,144.74,144.71,6.9069]
[1750805296324,41.0259,144.74,144.71,6.9069]
[1750805297134,41.0259,144.74,144.68,12.02130029]
[1750805297427,37.55611115,144.77,144.7,3.43611115]
[1750805297820,6.9052,144.76,144.74,6.9058]
[1750805298933,44.46071115,144.77,144.74,6.9058]
[1750805299226,37.55611115,144.77,144.75,6.9054]
[1750805299424,6.9043,144.78,144.72,8.58518914]
[1750805299629,42.15306584,144.79,144.72,12.02130029]
[1750805299833,6.9045,144.77,144.75,6.9051]
[1750805300635,6.9042,144.78,144.75,6.9051]
[1750805300832,41.0242,144.78,144.76,6.9048]
[1750805301133,34.12,144.78,144.72,3.43611115]
[1750805301330,34.12,144.78,144.76,6.9044]
[1750805302529,34.12,144.78,144.77,6.9044]
[1750805302833,43.67285273,144.78,144.77,6.9044]
[1750805303832,43.67193776,144.78,144.77,6.9044]
[1750805304338,50.57593776,144.78,144.76,6.9046]
[1750805304530,41.024,144.78,144.76,6.9046]
[1750805305237,34.12,144.78,144.76,6.9046]
[1750805306740,41.024,144.78,144.76,6.9046]
[1750805307839,34.12,144.78,144.76,6.9046]
[1750805309133,34.12,144.78,144.77,6.9044]
[1750805312641,6.9035,144.79,144.77,6.9044]
[1750805316544,6.904,144.78,144.72,47.05023283]
[1750805316741,2.19731218,144.77,144.73,2.19731218]
[1750805317147,2.19731218,144.74,144.69,47.23023283]
[1750805317348,2.19731218,144.73,144.69,49.42754501]
[1750805317544,34.3,144.77,144.69,49.42754501]
[1750805317545,9.10351218,144.74,144.71,6.907]
[1750805317848,2.19731218,144.74,144.71,6.907]
[1750805318046,2.19731218,144.72,144.67,12.93023283]
[1750805318353,37.73825813,144.71,144.66,2.3961]
[1750805318552,6.9081,144.7,144.67,6.9089]
[1750805319349,44.64575813,144.71,144.67,6.9089]
[1750805319552,44.64575813,144.71,144.68,6.9087]
[1750805319854,34.3,144.71,144.66,2.3961]
[1750805320349,10.34455813,144.73,144.7,6.9074]
[1750805324351,6.9068,144.72,144.7,6.9074]
[1750805325362,10.34475813,144.73,144.7,6.9074]
[1750805325560,3.43825813,144.73,144.7,6.9074]
[1750805326560,10.34475813,144.73,144.7,6.9074]
[1750805330262,6.9068,144.72,144.7,6.9074]
[1750805330650,6.9068,144.72,144.66,2.3961]
[1750805330959,3.43825813,144.73,144.66,2.3961]
[1750805331361,6.9073,144.71,144.68,6.9083]
[1750805337567,6.9078,144.7,144.68,6.9083]
[1750805338569,6.9078,144.7,144.67,6.909]
[1750805339560,3.43825813,144.71,144.65,2.2847]
[1750805339761,3.43825813,144.71,144.62,8.59309082]
[1750805339762,3.43825813,144.69,144.62,8.59309082]
[1750805339968,3.43825813,144.67,144.61,8.59309082]
[1750805340469,3.43825813,144.67,144.6,49.76479082]
[1750805340865,6.9104,144.65,144.62,6.9111]
[1750805341062,3.43825813,144.67,144.6,41.1717]
[1750805341261,3.43825813,144.67,144.6,49.76479082]
[1750805341464,6.9099,144.66,144.63,6.9109]
[1750805341967,6.9099,144.66,144.64,6.9105]
[1750805342168,34.3,144.68,144.62,3.43825813]
[1750805342564,6.9094,144.67,144.64,6.9102]
[1750805343167,6.9094,144.67,144.65,6.9101]
[1750805343567,41.2089,144.68,144.65,6.9101]
[1750805344371,6.9092,144.67,144.65,6.9101]
[1750805345259,34.3,144.68,144.65,6.9101]
[1750805345260,41.2089,144.68,144.65,6.9101]
[1750805349774,6.9093,144.67,144.64,6.9104]
[1750805350272,6.9097,144.66,144.64,6.9104]
[1750805351273,6.9094,144.67,144.64,6.9104]
[1750805352577,6.9094,144.67,144.61,3.43825813]
[1750805352578,6.9094,144.67,144.65,6.91]
[1750805353676,6.9094,144.67,144.64,6.9104]
[1750805355771,6.9094,144.67,144.65,6.91]
[1750805356976,41.209,144.68,144.61,3.43825813]
[1750805358078,41.209,144.68,144.65,6.9099]
[1750805358476,6.9092,144.67,144.65,6.9099]
[1750805359786,41.2089,144.68,144.66,6.9096]
[1750805359981,41.2089,144.68,144.61,3.43825813]
[1750805360382,6.9092,144.67,144.65,6.9099]
[1750805360976,34.3,144.68,144.64,6.9103]
[1750805361287,34.3,144.68,144.61,12.03134895]
[1750805361686,6.9094,144.67,144.61,12.03134895]
[1750805362487,6.9094,144.67,144.64,6.9101]
[1750805363487,6.9094,144.67,144.65,6.91]
[1750805364191,6.9097,144.66,144.64,6.9104]
[1750805366090,6.9094,144.67,144.64,6.9104]
[1750805366290,6.9094,144.67,144.65,6.91]
[1750805366486,34.3,144.68,144.62,8.59309082]
[1750805366685,34.3,144.68,144.67,6.9092]
[1750805366895,6.908,144.7,144.64,8.59309082]
[1750805367388,44.70575813,144.71,144.64,8.59309082]
[1750805367591,34.36,144.71,144.65,19.11614895]
[1750805367786,34.36,144.71,144.66,8.59309082]
[1750805368985,34.36,144.71,144.67,8.59309082]
[1750805369992,34.36,144.71,144.69,6.9078]
[1750805370306,34.36,144.74,144.67,3.43825813]
[1750805370592,34.36,144.74,144.69,12.03134895]
[1750805370794,34.36,144.74,144.7,2.2152]
[1750805371190,9.325,144.81,144.7,2.2152]
[1750805371191,3.43825813,144.79,144.71,3.43825813]
[1750805371390,34.34,144.78,144.71,16.49374895]
[1750805371689,34.34,144.78,144.74,6.9056]
[1750805371690,6.9045,144.77,144.74,6.9056]
[1750805373097,34.34,144.78,144.75,6.9053]
[1750805374299,6.9045,144.77,144.75,6.9053]
[1750805374499,6.9045,144.77,144.74,6.9056]
[1750805382099,6.9045,144.77,144.71,7.90065813]
[1750805382100,6.9052,144.76,144.71,7.90065813]
[1750805383207,6.9052,144.76,144.73,6.906]
[1750805387093,3.43825813,144.77,144.73,6.906]
[1750805387094,6.9054,144.75,144.73,6.906]
[1750805388313,6.9059,144.74,144.7,2.2152]
[1750805388814,41.1659,144.74,144.7,2.2152]
[1750805389008,41.1659,144.74,144.71,6.907]
[1750805389705,41.1659,144.74,144.72,6.9067]
[1750805391209,34.26,144.74,144.73,6.9063]
[1750805393508,6.9051,144.76,144.73,6.9063]
[1750805393915,6.9051,144.76,144.74,6.9058]
[1750805395117,37.69825813,144.77,144.75,6.9052]
[1750805395118,41.1646,144.77,144.75,6.9052]
[1750805395414,34.26,144.77,144.75,6.9052]
[1750805395614,34.26,144.77,144.71,8.06165813]
[1750805396518,34.26,144.77,144.76,6.9049]
[1750805396716,34.26,144.8,144.73,3.43825813]
[1750805398116,6.9035,144.79,144.77,6.9041]
[1750805399514,601.3618,144.83,144.78,6.9037]
[1750805399820,37.69825813,144.82,144.75,3.43825813]
[1750805400221,37.69825813,144.82,144.72,34.26]
[1750805400418,3.43825813,144.8,144.73,3.43825813]
[1750805400922,3.43825813,144.8,144.72,34.26]
[1750805401312,6.9043,144.78,144.75,6.9053]
[1750805401514,41.1643,144.78,144.75,6.9053]
[1750805402113,41.1643,144.78,144.72,34.26]
[1750805402826,41.1643,144.78,144.75,6.9051]
[1750805403119,34.26,144.78,144.73,3.43825813]
[1750805403716,34.26,144.78,144.72,34.26]
[1750805403928,34.26,144.78,144.73,3.43825813]
[1750805404622,34.26,144.78,144.76,6.9046]
[1750805405324,41.1639,144.78,144.76,6.9046]
[1750805406728,41.1639,144.78,144.75,6.9051]
[1750805406929,34.26,144.78,144.72,34.26]
[1750805407132,34.26,144.78,144.76,6.9046]
[1750805407645,41.164,144.78,144.76,6.9046]
[1750805416245,43.36176413,144.78,144.76,6.9046]
[1750805421350,43.36176413,144.78,144.74,2.19776413]
[1750805421351,2.19776413,144.77,144.72,49.38799696]
[1750805421650,2.19776413,144.77,144.73,2.19776413]
[1750805422046,9.10236413,144.77,144.74,6.9057]
[1750805422535,9.10236413,144.77,144.73,2.19776413]
[1750805422536,9.10236413,144.77,144.75,6.9053]
[1750805422841,34.26,144.78,144.74,2.19776413]
[1750805422842,43.36186413,144.78,144.74,2.19776413]
[1750805423046,34.26,144.78,144.74,2.19776413]
[1750805423341,34.26,144.78,144.77,6.9044]
[1750805423539,38.88024029,144.78,144.77,6.9044]
[1750805423742,34.26,144.78,144.77,6.9044]
[1750805427450,6.9036,144.79,144.77,6.9044]
[1750805428946,9.10104256,144.79,144.77,6.9044]
[1750805430257,9.10090739,144.79,144.77,6.9044]
[1750805430643,2.19730739,144.79,144.78,6.9039]
[1750805430948,11.80686708,144.79,144.78,6.9039]
[1750805431750,11.80713717,144.79,144.78,6.9039]
[1750805432348,9.60982978,144.79,144.78,6.9039]
[1750805432647,2.19730739,144.8,144.79,6.9034]
[1750805432849,9.61225459,144.8,144.79,6.9034]
[1750805434650,9.61078221,144.8,144.79,6.9034]
[1750805435646,16.51378221,144.8,144.78,6.9037]
[1750805435851,6.903,144.8,144.78,6.9037]
[1750805436048,9.62102969,144.79,144.78,6.9037]
[1750805437550,9.62359116,144.79,144.78,6.9037]
[1750805437852,36.51730739,144.81,144.77,2.19730739]
[1750805438045,34.32,144.81,144.77,2.19730739]
[1750805438250,34.32,144.81,144.8,6.903]
[1750805438451,43.93990303,144.81,144.8,6.903]
[1750805439960,46.13721042,144.81,144.8,6.903]
[1750805440463,46.13714352,144.81,144.8,6.903]
[1750805440664,43.93983613,144.81,144.8,6.903]
[1750805441550,9.61983613,144.81,144.8,6.903]
[1750805443363,9.09960739,144.82,144.8,6.903]
[1750805443658,9.64018364,144.81,144.8,6.903]
[1750805444962,4.63718797,144.81,144.8,6.903]
[1750805445163,5.00082637,144.81,144.8,6.903]
[1750805445458,9.63970832,144.81,144.8,6.903]
[1750805445653,5.00452955,144.81,144.8,6.903]
[1750805446460,4.63517877,144.81,144.8,6.903]
[1750805446754,9.6317144,144.81,144.8,6.903]
[1750805447660,2.19730739,144.82,144.8,6.903]
[1750805448058,9.62799247,144.81,144.8,6.903]
[1750805448560,4.99652496,144.81,144.8,6.903]
[1750805448758,9.62764643,144.81,144.8,6.903]
[1750805449161,9.62731685,144.81,144.8,6.903]
[1750805449765,4.99619538,144.81,144.8,6.903]
[1750805450265,9.62740995,144.81,144.8,6.903]
[1750805450761,4.99619538,144.81,144.8,6.903]
[1750805452062,9.09940739,144.82,144.8,6.903]
[1750805452369,4.9949356,144.81,144.8,6.903]
[1750805454070,2.19730739,144.82,144.78,2.19730739]
[1750805454554,9.09940739,144.82,144.78,2.19730739]
[1750805454966,2.19730739,144.82,144.81,6.9025]
[1750805455266,9.62349598,144.82,144.81,6.9025]
[1750805455569,36.33730739,144.84,144.8,2.19730739]
[1750805455757,9.62354823,144.83,144.8,2.19730739]
[1750805455954,36.33730739,144.84,144.8,2.19730739]
[1750805456163,9.62403068,144.83,144.82,6.9016]
[1750805456570,4.99430585,144.83,144.82,6.9016]
[1750805457375,7.19161324,144.83,144.82,6.9016]
[1750805457667,2.19730739,144.83,144.82,6.9016]
[1750805459681,43.23840739,144.84,144.82,6.9016]
[1750805460278,2.19730739,144.83,144.78,2.19730739]
[1750805460468,2.19730739,144.82,144.77,2.19730739]
[1750805461269,2.19730739,144.81,144.76,38.7692]
[1750805461577,2.19730739,144.8,144.76,40.96650739]